bitfinex-derivatives/quotes_BNBF0:USTF0_20250401
["timestamp","ask_amount","ask_price","bid_price","bid_amount"]
[1743545109513,0.96,609.87,608.94,0.32843958]
[1743545109711,0.30150219,609.86,608.94,0.32843958]
[1743545109914,0.58703948,609.86,608.94,0.32843958]
[1743545110115,0.28553729,609.86,608.94,0.32843958]
[1743545111218,0.28553729,609.86,608.94,1.5446479]
[1743545112312,0.96,609.87,608.94,1.5446479]
[1743545112918,1.01953612,609.86,608.94,0.32843958]
[1743545114022,0.734,609.86,608.94,0.32843958]
[1743545114923,0.734,609.86,608.97,1.21620832]
[1743545115124,0.734,609.86,608.99,0.32841261]
[1743545117119,0.734,609.86,609.03,1.21620832]
[1743545117323,0.734,609.86,609.04,0.32838565]
[1743545125833,0.734,609.86,609.08,1.21620832]
[1743545126027,0.734,609.86,609.09,0.32835869]
[1743545128331,0.668,609.85,609.09,0.32835869]
[1743545142037,0.668,609.85,609.16,1.21620832]
[1743545142336,0.668,609.85,609.17,0.32831557]
[1743545143236,1.002,609.84,609.17,0.32831557]
[1743545145632,1.002,609.84,609.17,1.54452389]
[1743545148239,1.002,609.84,609.23,1.21620832]
[1743545148439,1.002,609.84,609.24,0.32827785]
[1743545157349,0.668,609.85,609.24,0.32827785]
[1743545158349,0.668,609.85,609.27,1.21620832]
[1743545158549,0.668,609.85,609.28,0.3282563]
[1743545159550,0.28546468,610.09,609.28,0.3282563]
[1743545160150,0.738,609.84,609.28,0.3282563]
[1743545167652,0.769,609.83,609.28,0.3282563]
[1743545172251,0.28543073,610.22,609.28,0.3282563]
[1743545172557,0.30134715,610.21,609.28,0.3282563]
[1743545172762,0.28525409,610.22,609.28,0.3282563]
[1743545172952,0.30134715,610.21,609.28,0.3282563]
[1743545173158,0.28525409,610.22,609.28,0.3282563]
[1743545173360,0.28525409,610.22,609.39,1.21620832]
[1743545173659,0.28525409,610.22,609.4,0.32819166]
[1743545178457,0.797,610.77,609.4,0.32819166]
[1743545178660,0.6287986,610.76,609.4,0.32819166]
[1743545178862,0.28529384,610.23,609.4,0.32819166]
[1743545179062,0.32746086,610.76,609.4,0.32819166]
[1743545179255,0.30128751,610.75,609.4,0.32819166]
[1743545179459,0.28526812,610.35,609.4,0.32819166]
[1743545179657,0.32746086,610.76,609.4,0.32819166]
[1743545179858,0.28526812,610.35,609.4,0.32819166]
[1743545180261,0.32746086,610.76,609.4,0.32819166]
[1743545180461,0.28526812,610.35,609.4,0.32819166]
[1743545180865,0.32746086,610.76,609.4,0.32819166]
[1743545181062,0.28526812,610.35,609.4,0.32819166]
[1743545181463,0.32746086,610.76,609.4,0.32819166]
[1743545181764,0.30127979,610.75,609.4,0.32819166]
[1743545182867,0.28528098,610.74,609.4,0.32819166]
[1743545183066,0.30127979,610.73,609.4,0.32819166]
[1743545184264,0.32748231,610.72,609.4,0.32819166]
[1743545184465,0.30127979,610.71,609.4,0.32819166]
[1743545186665,0.62876746,610.71,609.4,0.32819166]
[1743545186868,0.62877283,610.7,609.4,0.32819166]
[1743545187071,0.30127979,610.69,609.4,0.32819166]
[1743545187371,0.30133235,610.68,609.4,0.32819166]
[1743545187570,0.30133235,610.69,609.4,0.32819166]
[1743545187766,0.30133235,610.68,609.4,0.32819166]
[1743545187970,0.28536168,610.67,609.4,0.32819166]
[1743545188171,0.30133235,610.66,609.4,0.32819166]
[1743545188976,0.3013324,610.65,609.4,0.32819166]
[1743545189170,0.3013324,610.66,609.4,0.32819166]
[1743545189374,0.3013324,610.65,609.4,0.32819166]
[1743545189577,0.3013324,610.66,609.4,0.32819166]
[1743545189876,0.3013324,610.65,609.4,0.32819166]
[1743545190069,0.28536168,610.67,609.4,0.32819166]
[1743545190070,0.3013324,610.66,609.4,0.32819166]
[1743545190474,0.32749304,610.7,609.4,0.32819166]
[1743545190671,0.857,610.65,609.4,0.32819166]
[1743545190876,0.30132847,610.64,609.4,0.32819166]
[1743545192077,1.14236519,610.65,609.4,0.32819166]
[1743545192282,0.30134264,610.64,609.4,0.32819166]
[1743545193984,0.28536636,610.63,609.4,0.32819166]
[1743545194180,0.30134264,610.62,609.4,0.32819166]
[1743545195381,0.28536636,610.63,609.4,0.32819166]
[1743545195579,0.30134408,610.62,609.4,0.32819166]
[1743545196679,0.30134408,610.64,609.4,0.32819166]
[1743545196879,0.28532893,610.61,609.4,0.32819166]
[1743545197080,0.30134408,610.6,609.4,0.32819166]
[1743545199686,0.30134408,610.59,609.4,0.32819166]
[1743545199887,0.28532893,610.59,609.4,0.32819166]
[1743545200089,0.30134408,610.58,609.4,0.32819166]
[1743545202592,0.904,610.58,609.4,0.32819166]
[1743545202792,0.30134408,610.57,609.4,0.32819166]
[1743545202987,0.58667535,610.57,609.4,0.32819166]
[1743545203190,0.30134408,610.56,609.4,0.32819166]
[1743545209998,0.30134408,610.55,609.4,0.32819166]
[1743545210200,0.30134408,610.54,609.4,0.32819166]
[1743545210397,0.28533127,610.57,609.4,0.32819166]
[1743545210595,0.30133993,610.56,609.4,0.32819166]
[1743545211694,0.30133993,610.55,609.4,0.32819166]
[1743545211899,0.28532308,610.55,609.4,0.32819166]
[1743545212100,0.30133976,610.54,609.4,0.32819166]
[1743545214703,0.30133976,610.57,609.4,0.32819166]
[1743545214901,0.28532893,610.53,609.4,0.32819166]
[1743545215098,0.30133976,610.52,609.4,0.32819166]
[1743545216904,0.30133933,610.51,609.4,0.32819166]
[1743545217100,0.30133933,610.5,609.4,0.32819166]
[1743545217302,0.30133933,610.52,609.4,0.32819166]
[1743545217502,0.30133933,610.51,609.4,0.32819166]
[1743545217703,0.28533361,610.51,609.4,0.32819166]
[1743545217900,0.30133933,610.5,609.4,0.32819166]
[1743545218598,0.28533361,610.51,609.4,0.32819166]
[1743545218599,0.30134274,610.49,609.4,0.32819166]
[1743545218798,0.30134274,610.5,609.4,0.32819166]
[1743545219002,0.30134274,610.49,609.4,0.32819166]
[1743545219202,0.30134274,610.5,609.4,0.32819166]
[1743545219401,0.30134274,610.49,609.4,0.32819166]
[1743545219600,0.30134274,610.5,609.4,0.32819166]
[1743545219799,0.30134274,610.49,609.4,0.32819166]
[1743545220001,0.30134274,610.48,609.4,0.32819166]
[1743545220206,0.28533361,610.51,609.4,0.32819166]
[1743545220398,0.30133903,610.5,609.4,0.32819166]
[1743545220600,0.30133903,610.49,609.4,0.32819166]
[1743545220800,0.30133903,610.48,609.4,0.32819166]
[1743545221105,0.30133903,610.47,609.4,0.32819166]
[1743545221302,0.28532308,610.5,609.4,0.32819166]
[1743545221502,0.30133903,610.49,609.4,0.32819166]
[1743545223010,0.30133903,610.49,609.44,1.21620832]
[1743545223205,0.30133903,610.49,609.45,0.32816473]
[1743545223807,0.904,610.58,609.45,0.32816473]
[1743545223808,0.28531723,610.48,609.45,0.32816473]
[1743545224110,0.30133903,610.47,609.45,0.32816473]
[1743545224702,0.98633585,610.46,609.45,0.32816473]
[1743545224906,0.685,610.46,609.45,0.32816473]
[1743545225503,0.685,610.46,609.46,1.21620832]
[1743545225706,0.685,610.46,609.47,0.32815396]
[1743545227010,0.28531957,610.45,609.47,0.32815396]
[1743545230407,0.30132315,610.44,609.47,0.32815396]
[1743545232108,1.25232315,610.44,609.47,0.32815396]
[1743545232310,0.951,610.44,609.47,0.32815396]
[1743545233013,0.28535115,610.43,609.47,0.32815396]
[1743545234709,0.30132593,610.42,609.47,0.32815396]
[1743545235814,0.951,610.44,609.47,0.32815396]
[1743545236015,0.28535349,610.41,609.47,0.32815396]
[1743545238509,0.951,610.44,609.47,0.32815396]
[1743545238712,0.30132942,610.43,609.47,0.32815396]
[1743545238915,0.28535232,610.4,609.47,0.32815396]
[1743545241516,0.951,610.44,609.47,0.32815396]
[1743545241716,0.30132966,610.43,609.47,0.32815396]
[1743545241913,0.58668081,610.43,609.47,0.32815396]
[1743545242115,0.30132966,610.42,609.47,0.32815396]
[1743545244619,0.951,610.44,609.47,0.32815396]
[1743545244818,0.30136297,610.43,609.47,0.32815396]
[1743545245024,0.28538157,610.41,609.47,0.32815396]
[1743545245219,0.30136297,610.4,609.47,0.32815396]
[1743545246321,0.28538157,610.41,609.47,0.32815396]
[1743545246322,0.30140207,610.39,609.47,0.32815396]
[1743545246518,0.30140207,610.38,609.47,0.32815396]
[1743545246719,0.30140207,610.37,609.47,0.32815396]
[1743545246920,0.30140207,610.36,609.47,0.32815396]
[1743545247123,0.30140207,610.35,609.47,0.32815396]
[1743545247319,0.30140207,610.34,609.47,0.32815396]
[1743545247524,0.30140207,610.4,609.47,0.32815396]
[1743545247720,0.30140207,610.39,609.47,0.32815396]
[1743545247920,0.30140656,610.38,609.47,0.32815396]
[1743545249322,0.91,610.37,609.47,0.32815396]
[1743545249525,0.30140656,610.36,609.47,0.32815396]
[1743545255834,0.91,610.37,609.47,0.32815396]
[1743545256029,0.30138146,610.36,609.47,0.32815396]
[1743545257635,0.30137623,610.35,609.47,0.32815396]
[1743545257834,0.30137623,610.36,609.47,0.32815396]
[1743545259134,0.91,610.37,609.47,0.32815396]
[1743545259331,0.30137972,610.36,609.47,0.32815396]
[1743545259732,0.28540732,610.35,609.47,0.32815396]
[1743545259932,0.30137972,610.34,609.47,0.32815396]
[1743545260937,0.911,610.33,609.47,0.32815396]
[1743545261138,0.30137972,610.32,609.47,0.32815396]
[1743545263137,0.28541785,610.31,609.47,0.32815396]
[1743545263342,0.30137972,610.3,609.47,0.32815396]
[1743545265644,0.30137972,610.32,609.47,0.32815396]
[1743545265843,0.28543307,610.29,609.47,0.32815396]
[1743545266047,0.30137972,610.28,609.47,0.32815396]
[1743545268845,0.28543541,610.27,609.47,0.32815396]
[1743545269244,0.30137972,610.26,609.47,0.32815396]
[1743545270248,0.28543541,610.27,609.47,0.32815396]
[1743545271654,0.911,610.33,609.47,0.32815396]
[1743545271854,0.28541083,610.26,609.47,0.32815396]
[1743545277558,0.911,610.33,609.47,0.32815396]
[1743545278059,0.28542371,610.25,609.47,0.32815396]
[1743545278260,0.911,610.33,609.47,0.32815396]
[1743545278461,0.32749304,610.7,609.47,0.32815396]
[1743545278656,0.30137773,610.69,609.47,0.32815396]
[1743545278856,0.32750376,610.68,609.47,0.32815396]
[1743545279056,0.30137773,610.67,609.47,0.32815396]
[1743545279255,0.32751449,610.66,609.47,0.32815396]
[1743545279554,0.30137773,610.65,609.47,0.32815396]
[1743545279758,0.32752521,610.64,609.47,0.32815396]
[1743545279959,0.30137773,610.63,609.47,0.32815396]
[1743545280159,0.62890831,610.63,609.47,0.32815396]
[1743545280564,0.30137773,610.62,609.47,0.32815396]
[1743545280762,0.30137773,610.61,609.47,0.32815396]
[1743545280962,0.944,610.62,609.47,0.32815396]
[1743545280963,0.30137773,610.6,609.47,0.32815396]
[1743545281262,0.30137773,610.59,609.47,0.32815396]
[1743545281658,0.30137773,610.58,609.47,0.32815396]
[1743545281856,0.30137773,610.57,609.47,0.32815396]
[1743545282056,0.30137773,610.56,609.47,0.32815396]
[1743545282260,0.30137773,610.55,609.47,0.32815396]
[1743545282461,0.30137773,610.54,609.47,0.32815396]
[1743545282658,0.30137773,610.53,609.47,0.32815396]
[1743545282861,0.30137773,610.52,609.47,0.32815396]
[1743545283262,0.30137773,610.51,609.47,0.32815396]
[1743545283456,0.30137773,610.5,609.47,0.32815396]
[1743545283658,0.30137773,610.61,609.47,0.32815396]
[1743545283859,0.30137773,610.6,609.47,0.32815396]
[1743545284059,0.30137773,610.59,609.47,0.32815396]
[1743545284265,0.30137773,610.58,609.47,0.32815396]
[1743545284567,0.30137773,610.57,609.47,0.32815396]
[1743545284766,0.30137773,610.56,609.47,0.32815396]
[1743545284977,0.30137773,610.61,609.47,0.32815396]
[1743545285164,0.30137773,610.6,609.47,0.32815396]
[1743545285361,0.30137773,610.61,609.47,0.32815396]
[1743545286969,0.28532074,610.6,609.47,0.32815396]
[1743545287169,0.30137773,610.59,609.47,0.32815396]
[1743545289772,0.30137773,610.61,609.47,0.32815396]
[1743545289972,0.28534998,610.58,609.47,0.32815396]
[1743545290172,0.30137773,610.57,609.47,0.32815396]
[1743545291572,0.28534998,610.58,609.47,0.32815396]
[1743545291767,0.30135037,610.57,609.47,0.32815396]
[1743545292771,0.30135037,610.61,609.47,0.32815396]
[1743545293071,0.28535349,610.56,609.47,0.32815396]
[1743545293272,0.30135037,610.55,609.47,0.32815396]
[1743545295872,0.30135037,610.54,609.47,0.32815396]
[1743545296069,0.28535466,610.54,609.47,0.32815396]
[1743545296276,0.30135037,610.53,609.47,0.32815396]
[1743545297874,0.30131211,610.52,609.47,0.32815396]
[1743545298069,0.30131211,610.53,609.47,0.32815396]
[1743545298271,0.30131211,610.52,609.47,0.32815396]
[1743545298473,0.30131211,610.53,609.47,0.32815396]
[1743545298669,0.30131211,610.52,609.47,0.32815396]
[1743545298874,0.28533712,610.51,609.47,0.32815396]
[1743545299270,0.30131211,610.5,609.47,0.32815396]
[1743545304876,0.30131211,610.49,609.47,0.32815396]
[1743545305082,0.30131211,610.48,609.47,0.32815396]
[1743545309183,0.642,610.47,609.47,0.32815396]
[1743545309382,0.30131843,610.46,609.47,0.32815396]
[1743545309777,1.049,610.45,609.47,0.32815396]
[1743545309983,0.30131843,610.44,609.47,0.32815396]
[1743545310880,1.049,610.45,609.47,0.32815396]
[1743545311084,0.28534647,610.43,609.47,0.32815396]
[1743545311277,0.30131497,610.42,609.47,0.32815396]
[1743545312484,0.28534647,610.43,609.47,0.32815396]
[1743545312783,0.30131409,610.42,609.47,0.32815396]
[1743545313787,0.30131409,610.44,609.47,0.32815396]
[1743545313991,0.28534764,610.41,609.47,0.32815396]
[1743545314186,0.30131409,610.4,609.47,0.32815396]
[1743545316792,1.049,610.45,609.47,0.32815396]
[1743545316793,0.30131409,610.39,609.47,0.32815396]
[1743545317095,0.30131409,610.38,609.47,0.32815396]
[1743545319696,0.30131409,610.44,609.47,0.32815396]
[1743545319894,1.049,610.45,609.47,0.32815396]
[1743545319895,0.30131409,610.43,609.47,0.32815396]
[1743545320093,0.28533946,610.37,609.47,0.32815396]
[1743545320290,0.30131409,610.36,609.47,0.32815396]
[1743545321896,0.28533946,610.37,609.47,0.32815396]
[1743545322196,0.30130659,610.36,609.47,0.32815396]
[1743545322794,0.30130659,610.35,609.47,0.32815396]
[1743545322994,0.30130659,610.34,609.47,0.32815396]
[1743545325895,0.58664605,610.33,609.47,0.32815396]
[1743545326096,0.30130659,610.32,609.47,0.32815396]
[1743545326597,0.28533946,610.33,609.47,0.32815396]
[1743545328497,1.049,610.45,609.47,0.32815396]
[1743545328696,0.30130785,610.44,609.47,0.32815396]
[1743545328896,0.28532308,610.32,609.47,0.32815396]
[1743545329097,0.642,610.47,609.47,0.32815396]
[1743545329294,0.30130815,610.46,609.47,0.32815396]
[1743545329496,0.28532542,610.31,609.47,0.32815396]
[1743545329693,0.642,610.47,609.47,0.32815396]
[1743545329893,0.30130815,610.46,609.47,0.32815396]
[1743545330600,0.28533361,610.45,609.47,0.32815396]
[1743545330799,0.30130815,610.44,609.47,0.32815396]
[1743545331099,1.32930815,610.44,609.47,0.32815396]
[1743545331301,0.30130815,610.43,609.47,0.32815396]
[1743545332101,0.28533712,610.42,609.47,0.32815396]
[1743545332300,0.30130815,610.41,609.47,0.32815396]
[1743545332697,0.28533712,610.42,609.47,0.32815396]
[1743545334203,0.3013129,610.41,609.47,0.32815396]
[1743545334798,1.028,610.44,609.47,0.32815396]
[1743545335001,0.28534063,610.4,609.47,0.32815396]
[1743545336404,0.30130895,610.39,609.47,0.32815396]
[1743545337896,0.30130895,610.38,609.47,0.32815396]
[1743545338101,0.30130895,610.37,609.47,0.32815396]
[1743545340606,0.30130911,610.36,609.47,0.32815396]
[1743545340799,1.028,610.44,609.47,0.32815396]
[1743545340800,0.30130911,610.35,609.47,0.32815396]
[1743545341002,0.30130911,610.34,609.47,0.32815396]
[1743545341203,0.30130911,610.35,609.47,0.32815396]
[1743545341403,0.30130911,610.34,609.47,0.32815396]
[1743545341698,0.30130911,610.33,609.47,0.32815396]
[1743545341902,0.30130911,610.32,609.47,0.32815396]
[1743545342101,0.28533244,610.36,609.47,0.32815396]
[1743545342102,0.30130911,610.35,609.47,0.32815396]
[1743545342299,0.28533244,610.36,609.47,0.32815396]
[1743545342500,0.30130855,610.35,609.47,0.32815396]
[1743545343104,0.28533244,610.36,609.47,0.32815396]
[1743545343305,0.30130866,610.35,609.47,0.32815396]
[1743545343907,1.028,610.44,609.53,1.21620832]
[1743545343908,0.58663876,610.34,609.53,1.21620832]
[1743545344109,0.30130866,610.33,609.53,1.21620832]
[1743545346403,0.3013011,610.32,609.53,1.21620832]
[1743545346704,0.3013011,610.31,609.53,1.21620832]
[1743545346908,0.3013011,610.3,609.53,1.21620832]
[1743545347104,0.28532308,610.31,609.53,1.21620832]
[1743545347308,0.28532308,610.31,609.57,1.21620832]
[1743545349305,0.28532308,610.31,609.54,0.32811628]
[1743545349510,0.32753058,610.63,609.54,0.32811628]
[1743545349709,0.3012676,610.62,609.54,0.32811628]
[1743545349911,0.28529969,610.33,609.54,0.32811628]
[1743545350110,0.992,610.61,609.54,0.32811628]
[1743545350610,0.28530086,610.33,609.54,0.32811628]
[1743545350811,0.992,610.61,609.54,0.32811628]
[1743545351212,0.993,610.6,609.54,0.32811628]
[1743545351612,1.2783032,610.6,609.54,0.32811628]
[1743545352612,0.993,610.6,609.54,0.32811628]
[1743545353113,0.28530437,610.59,609.54,0.32811628]
[1743545355608,0.993,610.6,609.54,0.32811628]
[1743545356011,0.28530554,610.59,609.54,0.32811628]
[1743545357415,0.30126568,610.58,609.54,0.32811628]
[1743545358517,0.993,610.6,609.54,0.32811628]
[1743545358716,0.30126598,610.59,609.54,0.32811628]
[1743545359018,0.58657268,610.59,609.54,0.32811628]
[1743545359218,0.30126598,610.58,609.54,0.32811628]
[1743545360018,0.2853067,610.59,609.54,0.32811628]
[1743545360219,0.30126598,610.58,609.54,0.32811628]
[1743545361819,0.993,610.6,609.54,0.32811628]
[1743545361820,0.30126598,610.57,609.54,0.32811628]
[1743545362014,0.30126598,610.56,609.54,0.32811628]
[1743545364724,0.993,610.6,609.54,0.32811628]
[1743545364920,0.28528565,610.55,609.54,0.32811628]
[1743545365120,0.30125693,610.54,609.54,0.32811628]
[1743545367726,0.30125693,610.53,609.54,0.32811628]
[1743545368027,0.30125693,610.52,609.54,0.32811628]
[1743545370929,0.30125723,610.51,609.54,0.32811628]
[1743545371230,0.30125723,610.5,609.54,0.32811628]
[1743545373528,0.775,610.49,609.54,0.32811628]
[1743545373730,0.30125723,610.48,609.54,0.32811628]
[1743545374131,0.58654522,610.48,609.54,0.32811628]
[1743545374328,0.30125723,610.47,609.54,0.32811628]
[1743545375430,0.30125821,610.46,609.54,0.32811628]
[1743545375625,0.30125821,610.47,609.54,0.32811628]
[1743545375829,0.30125821,610.46,609.54,0.32811628]
[1743545376131,0.30125821,610.45,609.54,0.32811628]
[1743545376327,0.30125821,610.47,609.54,0.32811628]
[1743545376528,0.775,610.49,609.54,0.32811628]
[1743545376529,0.30125821,610.46,609.54,0.32811628]
[1743545376726,0.30125821,610.45,609.54,0.32811628]
[1743545376925,0.30125821,610.44,609.54,0.32811628]
[1743545377129,0.30125792,610.43,609.54,0.32811628]
[1743545377331,0.30125792,610.42,609.54,0.32811628]
[1743545377633,0.30125792,610.41,609.54,0.32811628]
[1743545377833,0.30125792,610.44,609.54,0.32811628]
[1743545378132,0.30125792,610.43,609.54,0.32811628]
[1743545378333,0.30125792,610.42,609.54,0.32811628]
[1743545378529,0.30125792,610.41,609.54,0.32811628]
[1743545378734,0.30125687,610.4,609.54,0.32811628]
[1743545378934,0.30125687,610.39,609.54,0.32811628]
[1743545379134,0.30125687,610.38,609.54,0.32811628]
[1743545379329,0.30125687,610.44,609.57,1.21620832]
[1743545379527,0.30125687,610.37,609.58,0.32809475]
[1743545379829,0.30125687,610.36,609.58,0.32809475]
[1743545380030,0.775,610.49,609.58,0.32809475]
[1743545380031,0.28526812,610.38,609.58,0.32809475]
[1743545380227,0.30125815,610.37,609.58,0.32809475]
[1743545381230,0.30125815,610.37,609.61,1.21620832]
[1743545381833,0.28526812,610.38,609.61,1.21620832]
[1743545382032,0.30125687,610.37,609.61,1.21620832]
[1743545382932,0.775,610.49,609.63,1.21620832]
[1743545383136,0.2852763,610.38,609.63,1.21620832]
[1743545383333,0.30125657,610.48,609.63,1.21620832]
[1743545383539,0.30125657,610.47,609.63,1.21620832]
[1743545383738,0.30125657,610.46,609.63,1.21620832]
[1743545383937,0.30125657,610.45,609.63,1.21620832]
[1743545384133,0.30125657,610.44,609.63,1.21620832]
[1743545384834,0.2852611,610.45,609.64,1.21620832]
[1743545385038,1.033,610.44,609.64,1.21620832]
[1743545386139,0.28526578,610.43,609.64,1.21620832]
[1743545386841,0.28526578,610.43,609.58,0.32809475]
[1743545388643,1.033,610.44,609.58,0.32809475]
[1743545388839,0.28527981,610.42,609.58,0.32809475]
[1743545391645,1.033,610.44,609.58,0.32809475]
[1743545391846,0.28527981,610.41,609.58,0.32809475]
[1743545394551,0.30125695,610.4,609.58,0.32809475]
[1743545396953,0.30125695,610.4,609.62,1.21620832]
[1743545397854,0.58654027,610.39,609.62,1.21620832]
[1743545398053,0.30125695,610.38,609.62,1.21620832]
[1743545398854,0.30125695,610.38,609.58,0.32809475]
[1743545398855,0.30125695,610.38,609.64,1.21620832]
[1743545400055,0.30130061,610.37,609.64,1.21620832]
[1743545400355,0.28528332,610.39,609.64,1.21620832]
[1743545400356,0.30130061,610.36,609.64,1.21620832]
[1743545400555,0.30130061,610.35,609.64,1.21620832]
[1743545400857,0.30130061,610.34,609.64,1.21620832]
[1743545401050,0.28530904,610.35,609.64,1.21620832]
[1743545401356,0.28530904,610.35,609.58,0.32809475]
[1743545401357,0.30130061,610.34,609.58,0.32809475]
[1743545403052,0.30129975,610.33,609.58,0.32809475]
[1743545403257,0.30129975,610.32,609.58,0.32809475]
[1743545403856,0.28533244,610.31,609.58,0.32809475]
[1743545409555,0.82,610.33,609.58,0.32809475]
[1743545409959,0.28535349,610.31,609.58,0.32809475]
[1743545418667,0.82,610.33,609.58,0.32809475]
[1743545419063,0.28531957,610.31,609.58,0.32809475]
[1743545421571,0.82,610.33,609.58,0.32809475]
[1743545421970,0.28534413,610.31,609.58,0.32809475]
[1743545424568,0.82,610.33,609.58,0.32809475]
[1743545425072,0.28534413,610.32,609.58,0.32809475]
[1743545427572,0.82,610.33,609.58,0.32809475]
[1743545437786,1.503,610.33,609.58,0.32809475]
[1743545459306,1.503,610.33,609.62,1.21620832]
[1743545459503,1.503,610.33,609.63,0.32806784]
[1743545461703,1.503,610.33,609.64,1.21620832]
[1743545462306,1.503,610.33,609.65,0.32805708]
[1743545542177,0.28530787,610.32,609.65,0.32805708]
[1743545544780,2.4978259,611.32,609.65,0.32805708]
[1743545545078,0.2851933,610.31,609.65,0.32805708]
[1743545545281,0.3271716,611.3,609.65,0.32805708]
[1743545545580,1.14519564,610.3,609.65,0.32805708]
[1743545545978,1.142,610.29,609.65,0.32805708]
[1743545546180,1.42731372,610.29,609.65,0.32805708]
[1743545547682,1.142,610.29,609.65,0.32805708]
[1743545548078,0.28531489,610.28,609.65,0.32805708]
[1743545553787,1.142,610.29,609.65,0.32805708]
[1743545554088,0.28530554,610.28,609.65,0.32805708]
[1743545554483,1.142,610.29,609.65,0.32805708]
[1743545568999,0.28532659,610.28,609.65,0.32805708]
[1743545571698,0.86,610.3,609.65,0.32805708]
[1743545572199,0.28532308,610.28,609.65,0.32805708]
[1743545574605,2.4978259,611.47,609.65,0.32805708]
[1743545574805,1.114,610.27,609.65,0.32805708]
[1743545576106,0.96,610.26,609.65,0.32805708]
[1743545581011,1.24532893,610.26,609.65,0.32805708]
[1743545586813,0.96,610.26,609.65,0.32805708]
[1743545587014,1.24531021,610.26,609.65,0.32805708]
[1743545587714,0.96,610.26,609.65,0.32805708]
[1743545605328,1.114,610.27,609.65,0.32805708]
[1743545608030,0.72,610.26,609.65,0.32805708]
[1743545619035,1.114,610.27,609.65,0.32805708]
[1743545622047,0.876,610.26,609.65,0.32805708]
[1743545623155,0.28534063,610.25,609.65,0.32805708]
[1743545623647,0.876,610.26,609.65,0.32805708]
[1743545628850,0.894,610.25,609.65,0.32805708]
[1743545629051,0.894,610.25,609.67,1.21620832]
[1743545630051,0.894,610.25,609.68,0.32804093]
[1743545648757,0.2853184,610.3,609.68,0.32804093]
[1743545649764,1.014,610.29,609.68,0.32804093]
[1743545651564,1.137,610.28,609.68,0.32804093]
[1743545662683,1.29932542,610.29,609.68,0.32804093]
[1743545664881,1.014,610.29,609.68,0.32804093]
[1743545665276,1.064,610.28,609.68,0.32804093]
[1743545680400,0.3271716,611.3,609.68,0.32804093]
[1743545680600,0.28528449,610.49,609.68,0.32804093]
[1743545680899,0.3271716,611.3,609.68,0.32804093]
[1743545681201,0.30115868,611.29,609.68,0.32804093]
[1743545681502,0.32718765,611.27,609.68,0.32804093]
[1743545681800,0.30115868,611.26,609.68,0.32804093]
[1743545682106,0.32720371,611.24,609.68,0.32804093]
[1743545682302,0.30115868,611.23,609.68,0.32804093]
[1743545682603,0.32721442,611.22,609.68,0.32804093]
[1743545682901,0.30115868,611.21,609.68,0.32804093]
[1743545683100,0.32722513,611.2,609.68,0.32804093]
[1743545683303,0.30115868,611.19,609.68,0.32804093]
[1743545683508,0.32723583,611.18,609.68,0.32804093]
[1743545683702,0.30115868,611.17,609.68,0.32804093]
[1743545683898,0.32724654,611.16,609.68,0.32804093]
[1743545684103,0.30115868,611.15,609.68,0.32804093]
[1743545684304,0.32725725,611.14,609.68,0.32804093]
[1743545684603,0.30115868,611.13,609.68,0.32804093]
[1743545684805,0.32726796,611.12,609.68,0.32804093]
[1743545685204,0.30115868,611.11,609.68,0.32804093]
[1743545685403,0.32727867,611.1,609.68,0.32804093]
[1743545685604,0.30115868,611.09,609.68,0.32804093]
[1743545686100,0.32728938,611.08,609.68,0.32804093]
[1743545686305,0.30115868,611.07,609.68,0.32804093]
[1743545686499,0.3273001,611.06,609.68,0.32804093]
[1743545686700,0.30115868,611.05,609.68,0.32804093]
[1743545686901,0.32731081,611.04,609.68,0.32804093]
[1743545687101,0.30115868,611.03,609.68,0.32804093]
[1743545688301,0.32731081,611.04,609.68,0.32804093]
[1743545688503,0.30116434,611.03,609.68,0.32804093]
[1743545689106,0.28518162,611.02,609.68,0.32804093]
[1743545689306,0.30116434,611.01,609.68,0.32804093]
[1743545691708,0.30115901,611.0,609.68,0.32804093]
[1743545691909,0.30115901,610.99,609.68,0.32804093]
[1743545692209,0.30115901,610.98,609.68,0.32804093]
[1743545692508,0.30115901,610.97,609.68,0.32804093]
[1743545692813,0.30115901,610.99,609.68,0.32804093]
[1743545698214,0.28516993,610.98,609.68,0.32804093]
[1743545698613,0.30115901,610.97,609.68,0.32804093]
[1743545699616,0.28516993,610.98,609.68,0.32804093]
[1743545699817,0.30116397,610.97,609.68,0.32804093]
[1743545701817,1.06,610.96,609.68,0.32804093]
[1743545702018,0.30116397,610.95,609.68,0.32804093]
[1743545702521,0.28519564,610.94,609.68,0.32804093]
[1743545702714,0.30116397,610.93,609.68,0.32804093]
[1743545704116,0.58636195,610.92,609.68,0.32804093]
[1743545704317,0.30116397,610.91,609.68,0.32804093]
[1743545705614,0.3011564,610.9,609.68,0.32804093]
[1743545705925,0.3011564,610.89,609.68,0.32804093]
[1743545706126,0.3011564,610.91,609.68,0.32804093]